Workbook

Sheet Cover page
A3: Quantifying the likelihood of barrier strike maintenance
A5: February 2016
A8: Barrier strike cost prediction model (see Appendix C in the main report)
A16: Dave Smith, Abley Transportation Consultants, Christchurch
A17: Robyn Hyde, Abley Transportation Consultants, Christchurch
A18: Carl O'Neil, Abley Transportation Consultants, Christchurch
A19: Bruce Corben, Corben Consulting, Victoria, Australia
A41: NZ Transport Agency research report 580
A42: Contracted research organisation – Abley Transportation Consultants

Sheet Barrier Strike Costs
B2: Roadside Barrier Strike Prediction Model
D4: Site/Location Information:
D6: Barrier Type: | E6: LHS Wire Rope
B11: Inputs
D12: 2-way AADT (vehicles/day): | E12: 10000 | G12: ='All Workings'!G27 ->  | J12: Horizontal alignment variable: | K12: 1 - Straight | M12: =IF(E6="LHS Wire Rope",'All Workings'!G30,IF(E6="Median Wire Rope",'All Workings'!G34,IF(E6="LHS W-Beam > 40m",'All Workings'!G39,IF(E6="LHS W-Beam ≤ 40m",'All Workings'!G43,IF(E6="Median W-Beam ≤ 40m",'All Workings'!G47,""))))) ->  | P12: Posted speed < 100kph? | Q12: No | S12: =IF(E6="Median Wire Rope",'All Workings'!G35,"") -> 
D14: Barrier length (m): | E14: 1000 | G14: =IF(OR(E6="LHS Wire Rope",E6="Median Wire Rope"),'All Workings'!G28,IF(AND(RIGHT(E6,5)="≤ 40m",'All Workings'!F28>40),"ERROR*****",IF(AND(RIGHT(E6,5)="> 40m",'All Workings'!F28<=40),"ERROR*****",'All Workings'!G28))) ->  | J14: Audio tactile road markings: | K14: No | M14: =IF(E6="LHS Wire Rope",'All Workings'!G31,IF(E6="Median Wire Rope",'All Workings'!G36,"")) ->  | P14: Terrain Code: | Q14: 1 - Level | S14: =IF(E6="LHS W-Beam > 40m",'All Workings'!G38,IF(E6="Median W-Beam > 40m",'All Workings'!G41,IF(E6="LHS W-Beam ≤ 40m",'All Workings'!G44,""))) -> 
D16: Average strike cost (Wire Rope)*: | E16: 2700 | G16: =IF(E6="LHS Wire Rope",'All Workings'!G32,IF(E6="Median Wire Rope",'All Workings'!G37,"")) ->  | J16: Centreline-LHS barrier offset (m): | K16: 5 | M16: =IF(E6="LHS Wire Rope",'All Workings'!G29,"") ->  | P16: % Heavy Vehicles traversing section | Q16: 10 | S16: =IF(E6="LHS W-Beam ≤ 40m",'All Workings'!G45,"") -> 
D18: Average strike cost (W-Beam)**: | E18: 2000 | G18: =IF(E6="Median W-Beam > 40m",'All Workings'!G42,IF(E6="LHS W-Beam > 40m",'All Workings'!G40,IF(E6="Median W-Beam ≤ 40m",'All Workings'!G48,IF(E6="LHS W-Beam ≤ 40m",'All Workings'!G46,"")))) ->  | J18: Median width (m): | K18: 2 | M18: =IF(E6="Median Wire Rope",'All Workings'!G33,"") -> 
B20: Outputs | C20: Vehicle Kilometres Travelled | I20: Estimated Total Strikes | O20: Estimated Nuisance Strikes***
J22: Strike rate: | K22: =IF('All Workings'!N37>=0,'All Workings'!N37,"0****") -> 0.1768 | L22: per million VKT | P22: Strike rate: | Q22: =IF('All Workings'!N40>=0,'All Workings'!N40,"0****") -> 0.1556 | R22: per million VKT
D24: Annual VKT: | E24: =IF('All Workings'!P2>=0,'All Workings'!P2,"0****") -> 3650000 | F24: per annum | J24: Strike rate: | K24: =IF('All Workings'!N38>=0,'All Workings'!N38,"0****") -> 0.64532 | L24: per annum | P24: Strike rate: | Q24: =IF('All Workings'!N41>=0,'All Workings'!N41,"0****") -> 0.56794 | R24: per annum
J26: Maintenance cost: | K26: =IF('All Workings'!N39>=0,'All Workings'!N39,"0****") -> 1742.364 | L26: per annum | P26: Maintenance cost: | Q26: =IF('All Workings'!N42>=0,'All Workings'!N42,"0****") -> 1533.438 | R26: per annum
D30: * Default value: $2,700 /Strike
D31: ** Default value: $2,000 /Strike
D32: *** Nuisance strikes occur during drive-away events (where the driver is unlikely to be found liable for the cost of repair)
D33: *** Nusiance strikes can only be calculated for barriers of type: LHS Wire Rope, Median Wire Rope
D34: =IF(OR(E24="0****",K22="0****",K24="0****",K26="0****"),"**** Value rounded to zero","") -> 
D35: =IF(OR(G12="ERROR*****",G14="ERROR*****",G16="ERROR*****",G18="ERROR*****",M12="ERROR*****",M14="ERROR*****",M16="ERROR*****",M18="ERROR*****",Q12="ERROR*****",Q14="ERROR*****",Q16="ERROR*****"),"***** Consult user guide for more information, including valid input ranges","") -> 

Sheet All Workings (hidden)
A1: Selection cells | L1: Inputs reformulated | O1: Outputs
B2: Barrier type: | C2: LHS Wire Rope | L2: All site | O2: VKT | P2: =IF(H27,365*F27*(F28/1000),"--") -> 3650000
C3: Median Wire Rope
C4: LHS W-Beam > 40m | L4: LHS Wire Rope - S/millVKT | M4: Horiz | N4: =$F$30 -> 1 | O4: S/millVKT | P4: =IF(AND(H29,H27),0.1768*N4-0.4132*N5+2.0042*N6,"--") -> 0.1768
C5: Median W-Beam > 40m | L5: LHS Wire Rope - S/annum | M5: ATP | N5: =$F$31-1 -> 0 | O5: S/annum | P5: =IF(AND(H27,H29),P4*(P2/1000000),"--") -> 0.64532
C6: LHS W-Beam ≤ 40m | L6: LHS Wire Rope - $/annum | M6: Offset Test | N6: =IF($F$29>=5,0,5-$F$29) -> 0 | O6: $/annum | P6: =IF(AND(H27,H29),P5*F32,"--") -> 1742.364
L8: Median Wire Rope - S/millVKT | M8: Horiz | N8: =$F$34 -> 1 | O8: S/millVKT | P8: =IF(AND(H33,H27),0.122*N8+0.00401*EXP(N9)-0.423*N10-0.132*N11,"--") -> 0.717136768
B9: Horizontal alignment variable: | C9: 1 - Straight | L9: Median Wire Rope - S/annum | M9: Med | N9: =MAX(0,7-$F$33) -> 5 | O9: S/annum | P9: =IF(AND(H27,H33),P8*(P2/1000000),"--") -> 2.617549203
C10: 2 - Easy curves | L10: Median Wire Rope - $/annum | M10: PSL | N10: =$F$35-1 -> 0 | O10: $/annum | P10: =IF(AND(H27,H33),P9*F37,"--") -> 7067.382849
C11: 3 - Easy-moderate curves | M11: ATP | N11: =$F$36-1 -> 0
C12: 4 - Moderate curves
C13: 5 - Tight curves | L13: LHS W-Beam > 40m - S/annum | M13: Ter | N13: =F38 -> 1 | O13: S/annum | P13: =IF(AND(H38,H27),0.0842*N13-0.118*N15+0.00000683*N16+0.0104*N14,"--") -> 0.1629
C14: 6 - Very tight curves | L14: LHS W-Beam > 40m - S/millVKT | M14: Hor | N14: =F39 -> 1 | O14: S/millVKT | P14: =IF(AND(H27,H38),P13/(P2/1000000),"--") -> 0.04463013699
L15: LHS W-Beam > 40m - $/annum | M15: Length | N15: =IF(F28<400,1,0) -> 0 | O15: $/annum | P15: =IF(AND(H27,H38),P13*F40,"--") -> 325.8
B16: Audio tactile road markings: | C16: No | M16: AADT | N16: =F27 -> 10000
C17: Yes
L18: Median W-Beam > 40m - S/annum | M18: Ter | N18: =F41 -> 1 | O18: S/annum | P18: =IF(AND(H41,H27),0.236*N18-0.324*N19+0.00000529*N20,"--") -> 0.2889
B19: Posted speed < 100kph? | C19: No | L19: Median W-Beam > 40m - S/millVKT | M19: Length | N19: =IF(F28<400,1,0) -> 0 | O19: S/millVKT | P19: =IF(AND(H27,H41),P18/(P2/1000000),"--") -> 0.07915068493
C20: Yes | L20: Median W-Beam > 40m - $/annum | M20: AADT | N20: =F27 -> 10000 | O20: $/annum | P20: =IF(AND(H27,H41),P18*F42,"--") -> 577.8
B22: Terrain Code: | C22: 1 - Level | L22: LHS W-Beam ≤ 40m - S/annum | M22: Hor | N22: =F43 -> 1 | O22: S/annum | P22: =IF(AND(H43,H27),0.00963*N22+0.0205*N23-0.188/N24+ 0.000000672*N25,"--") -> 0.01805
C23: 2 - Rolling | L23: LHS W-Beam ≤ 40m - S/millVKT | M23: Ter | N23: =F44 -> 1 | O23: S/millVKT | P23: =IF(AND(H27,H43),P22/(P2/1000000),"--") -> 0.004945205479
C24: 3 - Mountainous | L24: LHS W-Beam ≤ 40m - $/annum | M24: %Heavy | N24: =F45 -> 10 | O24: $/annum | P24: =IF(AND(H27,H43),P22*F46,"--") -> 36.1
M25: AADT | N25: =F27 -> 10000
B26: Inputs ranges | D26: min (<=) | E26: max (>=) | F26: Value | G26: VALID | H26: Group VALID
B27: All site | C27: 2-way AADT: | D27: 1 | E27: 100000 | F27: ='Barrier Strike Costs'!E12 -> 10000 | G27: =IF(OR(F27<D27,F27>E27),"ERROR*****", "") ->  | H27: =LEN(G27)+LEN(G28)=0 -> TRUE | L27: LHS Wire Rope - S/millVKT - Nuisance Only | M27: Horiz | N27: =$F$30 -> 1 | O27: S/millVKT | P27: =IF(AND(H27,H29),0.1556*N27-0.5906*N28+2.074*N29,"--") -> 0.1556
C28: Barrier length: | D28: 1 | E28: 10000 | F28: ='Barrier Strike Costs'!E14 -> 1000 | L28: LHS Wire Rope - S/annum - Nuisance Only | M28: ATP | N28: =$F$31-1 -> 0 | O28: S/annum | P28: =IF(AND(H27,H29),P27*P2/1000000,"--") -> 0.56794
B29: LHS Wire Rope | C29: Centreline LHS barrier offset: | D29: 3.5 | E29: 11 | F29: ='Barrier Strike Costs'!K16 -> 5 | H29: =LEN(G30)+LEN(G31)+LEN(G29)+LEN(G32)=0 -> TRUE | L29: LHS Wire Rope - $/annum - Nuisance Only | M29: Offset Test | N29: =IF($F$29>=5,0,5-$F$29) -> 0 | O29: $/annum | P29: =IF(AND(H27,H29),P28*F32,"--") -> 1533.438
C30: Horizontal alignment variable: | D30: 1 | E30: 6 | F30: =VALUE(LEFT('Barrier Strike Costs'!K12,1)) -> 1
C31: Audio tactile road markings: | D31: 1 | E31: 2 | F31: =IF('Barrier Strike Costs'!K14="No",1,2) -> 1 | L31: Median Wire Rope - S/millVKT - Nuisance Only | M31: Horiz | N31: =$F$34 -> 1 | O31: S/millVKT | P31: =IF(AND(H27,H33),0.0792*N31+0.8056*N32-0.1432*N34-0.2694*N33,"--") -> 0.0792
C32: Strike cost - Wire Rope: | D32: 1 | E32: 100000 | F32: ='Barrier Strike Costs'!E16 -> 2700 | L32: Median Wire Rope - S/annum - Nuisance Only | M32: Med | N32: =IF($F$33<2,1,0) -> 0 | O32: S/annum | P32: =IF(AND(H27,H33),P31*P2/1000000,"--") -> 0.28908
B33: Median Wire Rope | C33: Median width: | D33: 1.5 | E33: 10 | F33: ='Barrier Strike Costs'!K18 -> 2 | H33: =LEN(G34)+LEN(G36)+LEN(G33)+LEN(G35)+ LEN(G37)=0 -> TRUE | L33: Median Wire Rope - $/annum - Nuisance Only | M33: PSL | N33: =$F$35-1 -> 0 | O33: $/annum | P33: =IF(AND(H27,H33),P32*F37,"--") -> 780.516
C34: Horizontal alignment variable: | D34: 1 | E34: 6 | F34: =VALUE(LEFT('Barrier Strike Costs'!K12,1)) -> 1 | M34: ATP | N34: =$F$36-1 -> 0
C35: Posted speed < 100kph? | D35: 1 | E35: 2 | F35: =IF('Barrier Strike Costs'!Q12="No",1,2) -> 1
C36: Audio tactile road markings: | D36: 1 | E36: 2 | F36: =IF('Barrier Strike Costs'!K14="No",1,2) -> 1 | L36: Processed Outputs
C37: Strike cost - Wire Rope: | D37: 1 | E37: 100000 | F37: ='Barrier Strike Costs'!E16 -> 2700 | L37: =CONCATENATE('Barrier Strike Costs'!$E$6," - S/millVKT") -> LHS Wire Rope - S/millVKT | M37: S/annum | N37: =INDEX($P$4:$P$29,MATCH(L37,$L$4:$L$29,0)) -> 0.1768
B38: LHS W-Beam > 40m | C38: Terrain Code: | D38: 1 | E38: 3 | F38: =VALUE(LEFT('Barrier Strike Costs'!Q14,1)) -> 1 | H38: =LEN(G38)+LEN(G39)+LEN(G40)=0 -> TRUE | L38: =CONCATENATE('Barrier Strike Costs'!$E$6," - S/annum") -> LHS Wire Rope - S/annum | M38: S/millVKT | N38: =INDEX($P$4:$P$29,MATCH(L38,$L$4:$L$29,0)) -> 0.64532
C39: Horizontal alignment variable: | D39: 1 | E39: 6 | F39: =VALUE(LEFT('Barrier Strike Costs'!K12,1)) -> 1 | L39: =CONCATENATE('Barrier Strike Costs'!$E$6," - $/annum") -> LHS Wire Rope - $/annum | M39: $/annum | N39: 1742.364
C40: Strike cost - W-Beam: | D40: 1 | E40: 100000 | F40: ='Barrier Strike Costs'!E18 -> 2000 | L40: =CONCATENATE('Barrier Strike Costs'!$E$6," - S/millVKT - Nuisance Only") -> LHS Wire Rope - S/millVKT - Nuisance Only | M40: S/annum | N40: =IFERROR(INDEX($P$4:$P$33,MATCH(L40,$L$4:$L$33,0)),"--") -> 0.1556
B41: Median W-Beam > 40m | C41: Terrain Code: | D41: 1 | E41: 3 | F41: =VALUE(LEFT('Barrier Strike Costs'!Q14,1)) -> 1 | H41: =LEN(G41)+LEN(G42)=0 -> TRUE | L41: =CONCATENATE('Barrier Strike Costs'!$E$6," - S/annum - Nuisance Only") -> LHS Wire Rope - S/annum - Nuisance Only | M41: S/millVKT | N41: =IFERROR(INDEX($P$4:$P$33,MATCH(L41,$L$4:$L$33,0)),"--") -> 0.56794
C42: Strike cost - W-Beam: | D42: 1 | E42: 100000 | F42: ='Barrier Strike Costs'!E18 -> 2000 | L42: =CONCATENATE('Barrier Strike Costs'!$E$6," - $/annum - Nuisance Only") -> LHS Wire Rope - $/annum - Nuisance Only | M42: $/annum | N42: =IFERROR(INDEX($P$4:$P$33,MATCH(L42,$L$4:$L$33,0)),"--") -> 1533.438
B43: LHS W-Beam ≤ 40m | C43: Horizontal alignment variable: | D43: 1 | E43: 6 | F43: =VALUE(LEFT('Barrier Strike Costs'!K12,1)) -> 1 | H43: =LEN(G43)+LEN(G44)+LEN(G45)+LEN(G46)=0 -> TRUE
C44: Terrain Code: | D44: 1 | E44: 3 | F44: =VALUE(LEFT('Barrier Strike Costs'!Q14,1)) -> 1
C45: % Heavy Vehicles | D45: 1 | E45: 30 | F45: ='Barrier Strike Costs'!Q16 -> 10
C46: Strike cost - W-Beam: | D46: 1 | E46: 100000 | F46: ='Barrier Strike Costs'!E18 -> 2000
